[Event "Budapest GM ONE WEEK Feb 2024"]
[Site "Budapest"]
[Date "2024.02.27"]
[Round "3"]
[White "Vetoshko, Volodymyr"]
[Black "Gaal, Zsoka"]
[Result "1/2-1/2"]
[ECO "E06"]
[WhiteElo "2505"]
[BlackElo "2341"]
[Annotator "TA"]
[PlyCount "158"]
[EventDate "2024.02.25"]
[EventType "tourn"]
[EventCountry "HUN"]
[SourceTitle "playchess.com"]
[Source "ChessBase"]
[SourceQuality "1"]
[TimeControl "5400+30"]

{[%evp 51,158,36,124,129,132,116,116,116,139,139,174,107,91,91,101,80,95,91,91,93,131,144,240,234,240,240,240,240,241,234,234,234,234,234,234,234,234,234,235,235,236,236,239,234,234,234,234,241,241,241,241,257,267,267,267,267,267,241,249,250,257,263,271,271,280,277,277,284,284,284,291,291,298,298,301,234,234,241,248,16,16,16,16,16,16,16,16,16,16,16,16,16,16,16,16,16,16,16,16,16,16,16,16,16,16,16,16,0,15]} 1. c4 {[%emt 0:00:06]} Nf6 {[%emt 0:00:21]} 2. Nf3 {[%emt 0:00:13]} e6 {[%emt 0:00:15]} 3. g3 {[%emt 0:00:12]} d5 {[%emt 0:00:44]} 4. Bg2 {[%emt 0:00:09]} Be7 {[%emt 0:01:04]} 5. d4 {[%emt 0:00:14]} O-O {[%emt 0:00:43]} 6. Nc3 {[%emt 0:00:32]} c6 {[%emt 0:01:28]} 7. O-O {[%emt 0:00:27]} a5 {[%emt 0:00:19]} 8. Re1 {[%emt 0:00:38]} Nbd7 {[%emt 0:05:47]} 9. Nd2 {[%emt 0:00:30]} e5 {[%emt 0:09:52]} 10. dxe5 {[%emt 0:01:24]} Nxe5 {[%emt 0:01:10]} 11. cxd5 {[%emt 0:00:13]} Nxd5 {[%emt 0:02:24]} 12. Nxd5 {[%emt 0:00:53]} cxd5 {[%emt 0:00:08]} 13. Nf3 {[%emt 0:02:44]} Nxf3+ {[%emt 0:08:50]} 14. Bxf3 {[%emt 0:00:06]} Be6 {[%emt 0:01:07]} 15. Be3 {[%emt 0:04:33]} Bb4 {[%emt 0:20:41]} 16. Rf1 {[%emt 0:04:40]} Bh3 {[%emt 0:03:11]} 17. Bg2 {[%emt 0:00:33]} Bxg2 {[%emt 0:00:07]} 18. Kxg2 {[%emt 0:00:01]} Re8 {[%emt 0:01:42]} 19. Qb3 {[%emt 0:15:17]} Qf6 {[%emt 0:03:44]} 20. Rad1 {[%emt 0:09:17]} Rad8 {[%emt 0:06:10]} 21. Rd4 {[%emt 0:09:49]} Qa6 {[%emt 0:05:23]} 22. Qd3 {[%emt 0:11:50]} Bc5 {[%emt 0:02:06]} 23. Qxa6 {[%emt 0:02:57]} bxa6 {[%emt 0:00:06]} 24. Rd3 {[%emt 0:01:59]} Bxe3 {[%emt 0:07:51]} 25. fxe3 {[%emt 0:04:46]} d4 {[%emt 0:03:07]} 26. Rf5 {[%emt 0:05:11]} dxe3 {[%emt 0:01:29]} ({Black should play} 26... Rb8 $14) 27. Rxd8 $16 {[%emt 0:00:17]} (27. Rxa5 $2 {loses.} Rxd3 28. g4 Rd1 $19) 27... Rxd8 {[%emt 0:00:04]} 28. Rxa5 {[%emt 0:00:25]} Rd2 {[%emt 0:00:51]} 29. Rxa6 {[%emt 0:06:06]} g5 {[%emt 0:00:06]} (29... Rxe2+ $2 {perishes.} 30. Kf3 Rf2+ 31. Kxe3 $18) 30. Kf3 {[%emt 0:02:04]} Rxb2 {[%emt 0:00:07] [#]} 31. Kxe3 {[%emt 0:00:22]} ({White should try} 31. a4 $1 $18) 31... Kg7 $16 {[%emt 0:00:15]} 32. a4 {[%emt 0:01:50]} Ra2 {[%emt 0:00:19]} 33. a5 {[%emt 0:01:07]} Ra3+ {[%emt 0:02:59]} 34. Ke4 {[%emt 0:01:59]} Ra2 {[%emt 0:00:37]} 35. Kf3 {[%emt 0:00:29]} Ra3+ {[%emt 0:02:59]} 36. Kf2 {[%emt 0:02:15]} h5 {[%emt 0:01:00]} (36... f6 $16 {was necessary.} 37. Ra8 f5) 37. Ra8 $18 {[%emt 0:00:27]} Kh7 {[%emt 0:05:02]} 38. a6 {[%emt 0:00:29]} Kg7 {[%emt 0:00:07]} 39. a7 {[%emt 0:05:24]} Kh7 {[%emt 0:02:57]} 40. Ke1 {[%emt 0:00:41]} Ra2 {[%emt 0:00:04]} 41. Kd1 {[%emt 0:00:12]} Kg7 {[%emt 0:00:13]} 42. Kc1 {[%emt 0:00:49]} Kh7 {[%emt 0:00:57]} 43. Kb1 {[%emt 0:00:16]} Ra6 {[%emt 0:00:04]} 44. Kb2 {[%emt 0:00:14]} Kg7 {[%emt 0:00:07]} 45. Kb3 {[%emt 0:00:14]} Kh7 {[%emt 0:00:46]} 46. Kc4 {[%emt 0:00:45]} Kg7 {[%emt 0:00:23]} 47. e4 {[%emt 0:02:08]} Ra5 {[%emt 0:00:20]} 48. Kb4 {[%emt 0:02:30]} Ra1 {[%emt 0:00:06]} 49. Kc5 {[%emt 0:00:12]} Ra6 {[%emt 0:01:25]} 50. e5 {[%emt 0:01:35]} Kh7 {[%emt 0:01:53]} 51. Kb5 {[%emt 0:02:00]} Ra1 {[%emt 0:00:04]} 52. Kb6 {[%emt 0:00:05]} Rb1+ {[%emt 0:00:05]} 53. Kc6 {[%emt 0:00:07]} Ra1 {[%emt 0:00:05]} 54. Kd5 {[%emt 0:01:33]} Ra4 {[%emt 0:00:24]} 55. h3 {[%emt 0:01:35]} Kg7 {[%emt 0:00:17]} 56. Kd6 {[%emt 0:00:31]} Ra6+ {[%emt 0:00:35]} 57. Kc5 {[%emt 0:00:21]} Ra1 {[%emt 0:00:12]} 58. Kc6 {[%emt 0:00:37]} Ra2 {[%emt 0:00:33]} 59. Kb6 {[%emt 0:00:32]} Rb2+ {[%emt 0:00:05]} 60. Kc5 {[%emt 0:00:12]} Ra2 {[%emt 0:00:05]} 61. Kd4 {[%emt 0:00:21]} Ra4+ {[%emt 0:00:50]} 62. Kd5 {[%emt 0:00:06]} Kh7 {[%emt 0:00:21]} 63. e6 {[%emt 0:01:01]} fxe6+ {[%emt 0:00:06]} 64. Kxe6 {[%emt 0:00:06]} Kg7 {[%emt 0:00:24]} 65. Re8 $2 {[%emt 0:01:13]} ({Better is} 65. Ke5 $18 {Kd6 is the strong threat.} Ra1 66. Rd8 Rxa7 67. Rd3) 65... Ra6+ $11 {[%emt 0:00:19]} 66. Kf5 {[%emt 0:00:10]} Rxa7 {[%emt 0:00:05]} 67. Kxg5 {[%emt 0:00:41]} Ra5+ {[%emt 0:00:06]} 68. Kf4 {[%emt 0:00:26]} Kf6 {[%emt 0:00:38]} 69. Re4 {[%emt 0:00:44]} Ra1 {[%emt 0:02:01]} 70. Rb4 {[%emt 0:00:25]} Ra6 {[%emt 0:02:47]} 71. Rc4 {[%emt 0:00:29]} Rb6 {[%emt 0:00:14]} 72. Ra4 {[%emt 0:00:23]} Rc6 {[%emt 0:00:06]} 73. h4 {[%emt 0:00:23]} Rb6 {[%emt 0:00:10]} 74. Ra5 {[%emt 0:00:36]} Rb4+ {[%emt 0:00:06]} 75. Kf3 {[%emt 0:00:06]} Rb3+ {[%emt 0:00:09]} 76. Kg2 {[%emt 0:00:21]} Rb2+ {[%emt 0:00:05]} 77. Kh3 {[%emt 0:00:19]} Kg6 {[%emt 0:00:06]} 78. Ra6+ {[%emt 0:00:09]} Kg7 {[%emt 0:00:07]} 79. Ra5 {[%emt 0:00:23]} Kg6 {[%emt 0:00:06]} 1/2-1/2

[Event "Budapest GM ONE WEEK Feb 2024"]
[Site "Budapest"]
[Date "2024.02.27"]
[Round "3"]
[White "Pap, Misa"]
[Black "Paszewski, Mateusz"]
[Result "1-0"]
[ECO "B33"]
[WhiteElo "2422"]
[BlackElo "2286"]
[Annotator "TA"]
[PlyCount "101"]
[EventDate "2024.02.25"]
[EventType "tourn"]
[EventCountry "HUN"]
[SourceTitle "playchess.com"]
[Source "ChessBase"]
[SourceQuality "1"]
[TimeControl "5400+30"]

{[%evp 30,101,40,28,46,-40,-58,-59,-41,-38,0,-3,19,31,60,59,64,51,55,49,46,57,51,36,141,151,151,164,152,144,171,127,204,137,130,129,128,133,152,136,175,161,181,178,190,190,190,200,200,200,204,204,237,199,267,267,1207,1185,942,1185,872,607,585,518,29978,29979,29977,29978,29981,29982,29983,29984,29982,29982]} 1. e4 {[%emt 0:02:13]} c5 {[%emt 0:00:17]} 2. Nf3 {[%emt 0:00:27][%cal Bg1f3,Bf3d4,Bd4b5,Bb5a3,Ba3c2,Bc2e3][%mdl 32]} Nc6 {[%emt 0:00:04]} 3. d4 {[%emt 0:03:13]} cxd4 {[%emt 0:00:06]} 4. Nxd4 {[%emt 0:00:05]} Nf6 {[%emt 0:00:04]} 5. Nc3 {[%emt 0:00:12]} e5 {[%emt 0:00:04]} 6. Ndb5 {[%emt 0:00:23]} d6 {[%emt 0:00:11]} 7. Bg5 {[%emt 0:02:31]} a6 {[%emt 0:00:09]} 8. Na3 {[%emt 0:00:04]} b5 {[%emt 0:00:14]} 9. Bxf6 {[%emt 0:00:09]} gxf6 {[%emt 0:00:08]} 10. Nd5 {[%emt 0:00:05]} f5 {[%emt 0:00:38]} 11. c3 {[%emt 0:00:05]} Bg7 {[%emt 0:01:23]} 12. exf5 {[%emt 0:00:07]} Bxf5 {[%emt 0:00:08]} 13. Nc2 {[%emt 0:00:05]} O-O {[%emt 0:01:09]} 14. Nce3 {[%emt 0:00:04]} Be6 {[%emt 0:00:24]} 15. Bd3 {[%emt 0:01:24]} f5 {[%emt 0:03:04]} 16. O-O {[%emt 0:00:29]} Kh8 {[%emt 0:03:12]} 17. f4 {[%emt 0:08:56]} (17. Qh5 $14) 17... Ne7 $15 {[%emt 0:13:36]} 18. Bc2 {[%emt 0:12:14]} Nxd5 {[%emt 0:18:47] Black is slightly better.} 19. Nxd5 {[%emt 0:01:36]} Ra7 {[%emt 0:01:41][%cal Ba8a7,Ba7f7,Bf7f6,Bf6h6][%mdl 32]} 20. Kh1 {[%emt 0:04:31]} Bxd5 {[%emt 0:18:32]} 21. Qxd5 {[%emt 0:00:09]} exf4 {[%emt 0:00:07]} 22. Rxf4 {[%emt 0:10:47]} Raf7 {[%emt 0:03:36]} 23. Raf1 {[%emt 0:07:03][%cal Rc2f5] White has more active pieces.} (23. Bxf5 Be5 24. Raf1 Qg5 $19 (24... Bxf4 25. Rxf4 Qb6 26. Qe4 $17)) 23... Be5 {[%emt 0:02:39]} 24. R4f3 $36 {[%emt 0:00:17][%mdl 2048] Black is under pressure.} (24. Rxf5 Qh4 25. g3 (25. Rxf7 $2 Qxh2#) 25... Bxg3 $17) 24... Qg5 {[%emt 0:05:39]} 25. Rh3 {[%emt 0:18:33]} Rf6 {[%emt 0:03:55]} 26. Qb7 {[%emt 0:03:27][%csl LRa6,LRh7]} (26. Qf3 {simplifies} Qd2 27. Qf2 Qxf2 28. Rxf2 h6 29. a3) 26... R8f7 {[%emt 0:07:43]} (26... Rh6 $14) 27. Qxa6 $16 {[%emt 0:03:43]} Rh6 {[%emt 0:04:52]} 28. Qa8+ {[%emt 0:06:23]} (28. Qxb5 $2 Rxh3 29. Qe8+ (29. gxh3 $2 Qd2 $19) 29... Kg7 $19 (29... Qg8 $2 30. Qxg8+ Kxg8 31. gxh3 $18)) 28... Kg7 {[%emt 0:00:07]} 29. Qd5 {[%emt 0:03:06] Dodges Qd2} Rff6 {[%emt 0:05:14]} 30. Qb7+ {[%emt 0:02:40]} Kg6 {[%emt 0:02:11]} (30... Rf7 $16 31. Qf3 (31. Qxb5 $2 Rxh3 32. gxh3 Qd2 $19) 31... Rxh3 32. Qxh3 Rf6) 31. Qf3 {[%emt 0:05:10]} (31. Qxb5 $2 {is the wrong capture.} Rxh3 32. Bxf5+ (32. gxh3 $2 Qd2 $19) 32... Rxf5 $19) 31... Rxh3 {[%emt 0:04:59]} 32. gxh3 {[%emt 0:00:10] Threatens to win with Rg1.} Kh6 {[%emt 0:00:03]} 33. Bxf5 {[%emt 0:01:03]} Qd2 {[%emt 0:01:16]} 34. Qg2 {[%emt 0:00:53]} Qxg2+ {[%emt 0:00:39]} 35. Kxg2 {[%emt 0:00:05][%mdl 4096] Endgame. KRB-KRB} d5 {[%emt 0:00:01]} 36. Bd3 {[%emt 0:02:12]} Rxf1 {[%emt 0:00:48]} 37. Kxf1 $18 {[%emt 0:00:10] KB-KB} d4 {[%emt 0:00:03]} 38. c4 $1 {[%emt 0:00:22]} (38. Bxb5 dxc3 39. bxc3 Bxc3 $16) 38... bxc4 {[%emt 0:01:14]} 39. Bxc4 {[%emt 0:00:05]} d3 {[%emt 0:00:01]} 40. b4 {[%emt 0:00:30][%cal Bb2b4,Bb4b5][%mdl 32]} Bc3 {[%emt 0:00:44]} 41. a3 {[%emt 0:00:14][%cal Ba2a3,Ba3a4][%mdl 32]} (41. Bxd3 Bxb4 42. h4 Be7 $11) 41... d2 {[%emt 0:00:28]} (41... Kg5 $142 42. Bxd3 h5) 42. Ke2 {[%emt 0:00:13] Bb3 is the strong threat.} Bb2 $2 {[%emt 0:00:40] [#]} (42... Kg5 43. Bb3 Kf6) 43. a4 $1 {[%emt 0:00:05]} (43. Kxd2 Bxa3 44. Kc3 Kg7 $16) 43... Bc3 {[%emt 0:00:02]} 44. b5 {[%emt 0:00:02]} Ba5 {[%emt 0:00:02]} 45. Bd3 {[%emt 0:01:18] aiming for Bc2.} Kg7 {[%emt 0:01:24]} 46. Bc2 {[%emt 0:00:05] Hoping for Ke3.} h6 {[%emt 0:00:27]} (46... Kf6 $18 47. Bxh7 d1=R) 47. Kd3 {[%emt 0:00:02] White mates.} Kf6 {[%emt 0:00:27]} 48. Kd4 {[%emt 0:00:01]} Ke6 {[%emt 0:00:43] [#]} 49. Kc5 $1 {[%emt 0:00:02]} Bc7 {[%emt 0:00:30]} 50. Kc6 {[%emt 0:00:54]} Bxh2 {[%emt 0:00:05]} 51. a5 {[%emt 0:00:13] Weighted Error Value: White=0.23 (precise) /Black=0.39.  Mistake:       	White=1     	Black=4      Inaccurate:     	White=1     	Black=2      OK:         	White=6     	Black=8      Best:        	---       	Black=2      Strong:       	White=2     	---} 1-0

[Event "Budapest GM ONE WEEK Feb 2024"]
[Site "Budapest"]
[Date "2024.02.27"]
[Round "3"]
[White "Pribelszky, Bence"]
[Black "Grover, Sahaj"]
[Result "1/2-1/2"]
[ECO "D02"]
[WhiteElo "2371"]
[BlackElo "2503"]
[Annotator "TA"]
[PlyCount "79"]
[EventDate "2024.02.25"]
[EventType "tourn"]
[EventCountry "HUN"]
[SourceTitle "playchess.com"]
[Source "ChessBase"]
[SourceQuality "1"]
[TimeControl "5400+30"]

{[%evp 10,79,16,10,12,0,4,0,10,9,4,-2,25,22,47,43,27,21,35,41,40,37,63,38,30,22,43,46,60,12,15,17,15,14,11,4,56,58,54,60,77,77,143,134,134,102,155,150,144,144,172,168,183,160,161,174,179,39,27,0,0,0,0,0,0,0,0,0,0,0,0,0]} 1. Nf3 {[%emt 0:02:42]} d5 {[%emt 0:00:30]} 2. g3 {[%emt 0:00:16]} g6 {[%emt 0:00:06]} 3. Bg2 {[%emt 0:04:28]} Bg7 {[%emt 0:00:05]} 4. d4 {[%emt 0:00:10]} Nf6 {[%emt 0:00:06]} 5. O-O {[%emt 0:00:07]} O-O {[%emt 0:00:02]} 6. c3 {[%emt 0:00:54]} a5 {[%emt 0:02:58] [#]} 7. c4 $1 {[%emt 0:18:07]} dxc4 {[%emt 0:00:17]} 8. Na3 {[%emt 0:02:24][%cal Bb1a3,Ba3c4,Bc4e5][%mdl 32]} Nc6 {[%emt 0:01:20]} 9. Nxc4 {[%emt 0:00:49]} a4 {[%emt 0:00:11]} 10. Nce5 {[%emt 0:13:16]} Nb4 {[%emt 0:05:35]} 11. Bd2 {[%emt 0:01:49]} Nbd5 {[%emt 0:01:19]} 12. Qc1 {[%emt 0:01:08]} c6 {[%emt 0:02:30]} 13. Bh6 {[%emt 0:00:35]} Qb6 {[%emt 0:02:17]} 14. Bxg7 {[%emt 0:00:21]} Kxg7 {[%emt 0:00:05]} 15. Rd1 {[%emt 0:05:53]} h6 {[%emt 0:01:42]} 16. Nc4 {[%emt 0:04:05]} Qb5 {[%emt 0:03:50]} 17. Nfe5 {[%emt 0:02:26]} Bf5 {[%emt 0:00:38]} (17... Nb6 {simplifies} 18. Nxb6 Qxb6 19. Qc3 Bf5) 18. f3 {[%emt 0:04:00] Threatens to win with e4.} Nb6 {[%emt 0:02:57]} 19. e4 {[%emt 0:00:34]} (19. Na3 $1 $14 Qa5 (19... Qxe2 $2 {too greedy.} 20. Bf1 $18) 20. e4) 19... Nxc4 $11 {[%emt 0:01:33]} 20. Qxc4 {[%emt 0:11:13]} Qxc4 {[%emt 0:00:09]} 21. Nxc4 {[%emt 0:00:02]} Be6 {[%emt 0:00:06]} 22. Rac1 {[%emt 0:04:50]} b5 {[%emt 0:04:06]} (22... Rfd8 $11) 23. Ne5 $1 $14 {[%emt 0:00:46][%cal Bc4e5,Be5c6,Bc6e7][%mdl 32]} Bxa2 {[%emt 0:00:06]} 24. Nxc6 {[%emt 0:00:04]} Bb3 {[%emt 0:00:40]} 25. Re1 {[%emt 0:01:27]} Ne8 {[%emt 0:03:00]} (25... Rfc8 $142) 26. Nxe7 $16 {[%emt 0:05:26] White is more active.} Nd6 {[%emt 0:00:04]} 27. Bf1 {[%emt 0:09:13]} Nc4 {[%emt 0:01:21]} ({Black should try} 27... Bc4) 28. Bxc4 {[%emt 0:00:39]} Bxc4 {[%emt 0:00:03]} 29. Rc3 {[%emt 0:01:36]} f5 {[%emt 0:08:34]} 30. d5 {[%emt 0:04:37]} fxe4 {[%emt 0:03:46]} 31. fxe4 {[%emt 0:00:02]} Rf7 {[%emt 0:02:50]} 32. Nc6 {[%emt 0:00:48]} Raf8 {[%emt 0:05:04] [#]} 33. Ne5 {[%emt 0:01:28]} ({White should play} 33. Rc2 $1 $18) 33... Rf2 $1 $14 {[%emt 0:00:10]} 34. Nxc4 {[%emt 0:00:31]} (34. d6 {is interesting.} Rxb2 35. Rd1 Bb3 36. Rc7+) 34... bxc4 {[%emt 0:00:03] The position is equal.} 35. Rxc4 {[%emt 0:00:41] Rc7+ is the strong threat.} Rxb2 {[%emt 0:00:04]} 36. Rxa4 $11 {[%emt 0:00:28] Black must now prevent Rf1. KRR-KRR} Rff2 {[%emt 0:00:08]} 37. Ra7+ {[%emt 0:00:24]} Kg8 {[%emt 0:00:11]} 38. Ra8+ {[%emt 0:00:14]} Kg7 {[%emt 0:00:05]} 39. Ra7+ {[%emt 0:00:03]} Kg8 {[%emt 0:00:03]} 40. Ra8+ {[%emt 0:01:21] White really could win this.   Weighted Error Value: White=0.13 (very precise) /Black=0.12 (very precise) .  Mistake:       	White=2     	Black=3      Inaccurate:     	White=1     	Black=2      OK:         	White=12    	Black=12     Best:        	White=1     	Black=3      Strong:       	White=1     	Black=1} (40. Rb1 $5 Rg2+ $8 41. Kh1 Rxh2+ 42. Kg1 Rbg2+ 43. Kf1 Rf2+ 44. Ke1 Re2+ 45. Kf1 Ref2+ 46. Ke1 Re2+ 47. Kd1 Rd2+ 48. Ke1 Rhe2+ 49. Kf1 Rf2+ 50. Ke1 Rfe2+ 51. Kf1 Rf2+ 52. Kg1 $11) 1/2-1/2

[Event "Budapest GM ONE WEEK Feb 2024"]
[Site "Budapest"]
[Date "2024.02.27"]
[Round "3"]
[White "Paschall, William"]
[Black "Pasti, Aron"]
[Result "1/2-1/2"]
[ECO "B50"]
[WhiteElo "2331"]
[BlackElo "2389"]
[Annotator "TA"]
[PlyCount "48"]
[EventDate "2024.02.25"]
[EventType "tourn"]
[EventCountry "HUN"]
[SourceTitle "playchess.com"]
[Source "ChessBase"]
[SourceQuality "1"]
[TimeControl "5400+30"]

{[%evp 10,48,22,14,9,8,0,0,5,-32,-18,-33,-31,-44,-39,-71,-14,-26,-16,-27,-18,-17,-16,-44,-31,-36,0,0,33,39,37,-52,66,0,0,-38,44,0,0,-10,60]} 1. e4 {[%emt 0:00:34]} c5 {[%emt 0:00:09]} 2. b3 {[%emt 0:00:48]} e6 {[%emt 0:01:01]} 3. Nf3 {[%emt 0:01:25]} d6 {[%emt 0:01:13]} 4. Bb2 {[%emt 0:02:09]} Nf6 {[%emt 0:00:07]} 5. e5 {[%emt 0:02:37]} dxe5 {[%emt 0:00:05]} 6. Nxe5 {[%emt 0:00:45]} Bd6 {[%emt 0:00:18]} 7. Bb5+ {[%emt 0:06:06]} Nbd7 {[%emt 0:01:24]} 8. Na3 {[%emt 0:04:27]} O-O {[%emt 0:01:02]} 9. Bxd7 {[%emt 0:01:02]} Nxd7 {[%emt 0:00:59]} 10. Nxd7 {[%emt 0:05:58]} Bxd7 {[%emt 0:00:56]} 11. Nc4 {[%emt 0:03:11]} Bc7 {[%emt 0:00:15]} 12. Qh5 {[%emt 0:03:09] [#]} e5 {[%emt 0:06:19]} 13. a4 {[%emt 0:12:15]} f6 {[%emt 0:01:53]} 14. O-O {[%emt 0:01:55]} Bc6 {[%emt 0:00:26]} 15. d3 {[%emt 0:00:56]} b6 {[%emt 0:00:37]} 16. Rae1 {[%emt 0:06:39]} a6 {[%emt 0:01:57]} 17. Ne3 {[%emt 0:06:55][%cal Of2f4]} b5 {[%emt 0:02:37]} 18. f4 {[%emt 0:01:13]} exf4 {[%emt 0:17:26]} (18... bxa4 19. fxe5 fxe5 20. bxa4 $14) 19. Nf5 {[%emt 0:09:23]} Rf7 {[%emt 0:00:29] Prevents Re7.} (19... bxa4 $2 20. Re7 $18 (20. Ne7+ Kh8 $18) (20. Ne7+ Kh8 $18)) 20. Re2 {[%emt 0:04:50]} (20. Re6 $14 Qd7 21. Rfe1) 20... Qf8 {[%emt 0:26:06]} (20... bxa4 $15 21. Rfe1 Be5 22. Bxe5 fxe5 23. Rxe5 axb3 24. Ne7+ (24. cxb3 $2 {loses.} g6 $19) 24... Rxe7 25. Rxe7 Qd4+ (25... bxc2 26. Qf7+ Kh8 27. Qxg7#) 26. Kf1 Rf8) 21. Rfe1 {[%emt 0:05:41] White is much more active.} (21. Re6 $14 Bd7 22. Ne7+ Rxe7 23. Rxe7 Qxe7 24. Qd5+ Qe6 25. Qxa8+ Kf7 26. Qb7) 21... Ba5 $11 {[%emt 0:03:02] A strong pair of Bishops.} 22. Rf1 {[%emt 0:02:42]} Bc7 {[%emt 0:02:39]} (22... Re8 $15) 23. Rfe1 {[%emt 0:00:25]} (23. Re6 $14 Bd7 24. Ne7+ Rxe7 25. Rxe7 Qxe7 26. Qd5+ Qe6 27. Qxa8+ Kf7 28. axb5 axb5 29. Qb7) 23... Ba5 {[%emt 0:00:05]} 24. Rf1 {[%emt 0:00:05]} Bc7 {Weighted Error Value: White=0.22 (precise) /Black=0.26 (precise) .  Mistake:       	White=3     	Black=4      Inaccurate:     	White=4     	Black=2      OK:         	White=4     	Black=8      Best:        	White=1     	---} (24... Re8 $11) 1/2-1/2